Workbook

Sheet Indice Electrónico
B1: PROFORMA INTERNA | K1: M-PI-FJU-014
B2: Índice Electrónico Expediente Digital | K2: Versión 1
A3: Despacho Judicial | B3: Superintendencia Financiera de Colombia - Delegatura para Funciones Jurisdiccionales | H3: El expediente judicial posee documentos físicos: | J3: SI NO
A4: Serie o Subserie Documental
A5: No. Radicación del Proceso | B5: 2022112097 | H5: No. de carpetas (cuadernos), legajos o tomos:
A6: No. Expediente del Proceso | B6: 2022-2379
A7: Partes Procesales (Parte A) (demandado, procesado, accionado) | B7: BBVA SEGUROS DE VIDA COLOMBIA S.A. BBVA COLOMBIA S.A. | H7: No. de carpetas (cuadernos), legajos o tomos digitalizados:
A8: Partes Procesales (Parte B) (demandante, denunciante, accionante) | B8: KAREN BUSTAMANTE HERNANDEZ
A9: Cuaderno
A11: Nombre Documento | B11: Fecha Creación Documento | C11: Fecha Incorporación Expediente | D11: Orden Documento | E11: Página Inicio | F11: Página Fin | G11: Número Páginas | H11: Formato | I11: Tamaño | J11: Origen | K11: Observaciones
A12: 001 Demanda | B12: 31/07/2023 2:53 p. m. | C12: 1/08/2023 9:54 a. m. | D12: =IF(A12="","",1) -> 1 | E12: =+IF(A12="","",1) -> 1 | F12: =IF(E12<>"",E12+(G12-E12),"") -> 5 | G12: 5 | H12: .pdf | I12: 157 KB | J12: Digital
A13: 002 Anexo | B13: 31/07/2023 2:54 p. m. | C13: 1/08/2023 9:54 a. m. | D13: =IF(A13="","",D12+1) -> 2 | E13: =+IF(G13="","",(1+F12)) -> 6 | F13: =IF(E13<>"",E13+(G13-1),"") -> 39 | G13: 34 | H13: .pdf | I13: 4,77 MB | J13: Digital
A14: 003 AnexoCorreo | B14: 31/07/2023 2:54 p. m. | C14: 1/08/2023 9:54 a. m. | D14: =IF(A14="","",D13+1) -> 3 | E14: =+IF(G14="","",(1+F13)) -> 40 | F14: =IF(E14<>"",E14+(G14-1),"") -> 40 | G14: 1 | H14: .pdf | I14: 733 KB | J14: Digital
A15: 004 AnexoRadicacion | B15: 31/07/2023 12:02 p. m. | C15: 1/08/2023 9:54 a. m. | D15: 4 | E15: 41 | F15: 41 | G15: 1 | H15: .pdf | I15: 40,8 KB | J15: Digital
A16: 005 DemandaParaCalificar | B16: 31/07/2023 12:02 p. m. | C16: 1/08/2023 9:54 a. m. | D16: 5 | E16: 42 | F16: 43 | G16: 2 | H16: .pdf | I16: 148 KB | J16: Digital
A17: 006 AutoAdmisorioVebal | B17: 31/07/2023 12:02 p. m. | C17: 1/08/2023 9:54 a. m. | D17: 6 | E17: 44 | F17: 46 | G17: 3 | H17: .pdf | I17: 196 KB | J17: Digital
A18: 007 RemisionDeInformacion | B18: 31/07/2023 12:02 p. m. | C18: 1/08/2023 9:54 a. m. | D18: 7 | E18: 47 | F18: 48 | G18: 2 | H18: .pdf | I18: 180 KB | J18: Digital
A19: 008 NotificacionPersonalVerbal | B19: 31/07/2023 12:02 p. m. | C19: 1/08/2023 9:54 a. m. | D19: 8 | E19: 49 | F19: 50 | G19: 2 | H19: .pdf | I19: 159 KB | J19: Digital
A20: 009 NotificacionPersonalVerbal | B20: 31/07/2023 12:02 p. m. | C20: 1/08/2023 9:54 a. m. | D20: 9 | E20: 51 | F20: 52 | G20: 2 | H20: .pdf | I20: 159 KB | J20: Digital
A21: 010 AcuseDeRecibo | B21: 31/07/2023 12:02 p. m. | C21: 1/08/2023 9:54 a. m. | D21: 10 | E21: 53 | F21: 53 | G21: 1 | H21: .pdf | I21: 1,25 KB | J21: Digital
A22: 011 AcuseDeRecibo | B22: 31/07/2023 12:02 p. m. | C22: 1/08/2023 9:54 a. m. | D22: 11 | E22: 54 | F22: 54 | G22: 1 | H22: .pdf | I22: 1,24 KB | J22: Digital
A23: 012 PruebaDeEntrega | B23: 31/07/2023 2:57 p. m. | C23: 1/08/2023 9:54 a. m. | D23: 12 | E23: 55 | F23: 68 | G23: 14 | H23: .pdf | I23: 834 KB | J23: Digital
A24: 013 AnexoRadicacion | B24: 31/07/2023 12:02 p. m. | C24: 1/08/2023 9:54 a. m. | D24: 13 | E24: 69 | F24: 69 | G24: 1 | H24: .pdf | I24: 40,8 KB | J24: Digital
A25: 014 Anexos | B25: 31/07/2023 2:59 p. m. | C25: 1/08/2023 9:54 a. m. | D25: 14 | E25: 70 | F25: 73 | G25: 4 | H25: .pdf | I25: 195 KB | J25: Digital
A26: 015 AnexoCorreo | B26: 31/07/2023 2:59 p. m. | C26: 1/08/2023 9:54 a. m. | D26: 15 | E26: 74 | F26: 74 | G26: 1 | H26: .pdf | I26: 609 KB | J26: Digital
A27: 016 AnexoRadicacion | B27: 31/07/2023 12:02 p. m. | C27: 1/08/2023 9:54 a. m. | D27: 16 | E27: 75 | F27: 75 | G27: 1 | H27: .pdf | I27: 40,6 KB | J27: Digital
A28: 017 Contestacion | B28: 31/07/2023 3:00 p. m. | C28: 1/08/2023 9:54 a. m. | D28: 17 | E28: 76 | F28: 82 | G28: 7 | H28: .pdf | I28: 252 KB | J28: Digital
A29: 018 AnexoCorreo | B29: 31/07/2023 3:01 p. m. | C29: 1/08/2023 9:54 a. m. | D29: 18 | E29: 83 | F29: 83 | G29: 1 | H29: .pdf | I29: 494 KB | J29: Digital
A30: 019 RitaHernandez | B30: 31/07/2023 3:00 p. m. | C30: 1/08/2023 9:54 a. m. | D30: 19 | E30: 84 | F30: 84 | G30: 1 | H30: .txt | I30: 5,76 KB | J30: Digital
A31: 020 AnexoRadicacion | B31: 31/07/2023 12:02 p. m. | C31: 1/08/2023 9:54 a. m. | D31: 20 | E31: 85 | F31: 85 | G31: 1 | H31: .pdf | I31: 40,5 KB | J31: Digital
A32: 021 TarjetaProfesionalAlfonsoMuñoz | B32: 31/07/2023 3:05 p. m. | C32: 1/08/2023 9:54 a. m. | D32: 21 | E32: 86 | F32: 87 | G32: 2 | H32: .pdf | I32: 436 KB | J32: Digital
A33: 022 AnexoCorreo | B33: 31/07/2023 3:06 p. m. | C33: 1/08/2023 9:54 a. m. | D33: 22 | E33: 88 | F33: 88 | G33: 1 | H33: .pdf | I33: 749 KB | J33: Digital
A34: 023 AnexoRadicacion | B34: 31/07/2023 12:02 p. m. | C34: 1/08/2023 9:54 a. m. | D34: 23 | E34: 89 | F34: 160 | G34: 72 | H34: .pdf | I34: 40,9 KB | J34: Digital
A35: 024 Anexo | B35: 31/07/2023 3:08 p. m. | C35: 1/08/2023 9:54 a. m. | D35: 24 | E35: 161 | F35: 162 | G35: 2 | H35: .pdf | I35: 250 KB | J35: Digital
A36: 025 AnexoCorreo | B36: 31/07/2023 3:08 p. m. | C36: 1/08/2023 9:54 a. m. | D36: 25 | E36: 163 | F36: 163 | G36: 1 | H36: .pdf | I36: 663 KB | J36: Digital
A37: 026 AnexoRadicacion | B37: 31/07/2023 12:02 p. m. | C37: 1/08/2023 9:54 a. m. | D37: 26 | E37: 164 | F37: 165 | G37: 2 | H37: .pdf | I37: 40,5 KB | J37: Digital
A38: 027 AnexoCorreo | B38: 31/07/2023 3:09 p. m. | C38: 1/08/2023 9:54 a. m. | D38: 27 | E38: 166 | F38: 166 | G38: 1 | H38: .pdf | I38: 661 KB | J38: Digital
A39: 028 AnexoRadicacion | B39: 31/07/2023 12:02 p. m. | C39: 1/08/2023 9:54 a. m. | D39: 28 | E39: 167 | F39: 420 | G39: 254 | H39: .pdf | I39: 40,9 KB | J39: Digital
A40: 029 Contestación | B40: 31/07/2023 3:10 p. m. | C40: 1/08/2023 9:54 a. m. | D40: 29 | E40: 421 | F40: 421 | G40: 1 | H40: .pdf | I40: 15,4 MB | J40: Digital
A41: 030 AnexoCorreo | B41: 31/07/2023 3:10 p. m. | C41: 1/08/2023 9:54 a. m. | D41: 30 | E41: 422 | F41: 422 | G41: 1 | H41: .pdf | I41: 694 KB | J41: Digital
A42: 031 AnexoRadicacion | B42: 31/07/2023 12:02 p. m. | C42: 1/08/2023 9:54 a. m. | D42: 31 | E42: 423 | F42: 423 | G42: 1 | H42: .pdf | I42: 40,9 KB | J42: Digital
A43: 032 TrasladoDeExcepciones | B43: 31/07/2023 12:02 p. m. | C43: 1/08/2023 9:54 a. m. | D43: 32 | E43: 424 | F43: 427 | G43: 4 | H43: .pdf | I43: 149 KB | J43: Digital
A44: 033 ContestacionDerechoDePetecion | B44: 31/07/2023 3:12 p. m. | C44: 1/08/2023 9:54 a. m. | D44: 33 | E44: 428 | F44: 429 | G44: 2 | H44: .pdf | I44: 50,0 KB | J44: Digital
A45: 034 AnexoCorreo | B45: 31/07/2023 3:13 p. m. | C45: 1/08/2023 9:54 a. m. | D45: 34 | E45: 430 | F45: 430 | G45: 1 | H45: .pdf | I45: 827 KB | J45: Digital
A46: 035 AnexoRadicacion | B46: 31/07/2023 12:02 p. m. | C46: 1/08/2023 9:54 a. m. | D46: 35 | E46: 431 | F46: 434 | G46: 4 | H46: .pdf | I46: 41,3 KB | J46: Digital
A47: 036 ContestacionDerechoDePeticion | B47: 31/07/2023 3:13 p. m. | C47: 1/08/2023 9:54 a. m. | D47: 36 | E47: 435 | F47: 436 | G47: 2 | H47: .pdf | I47: 50,0 KB | J47: Digital
A48: 037 AnexoCorreo | B48: 31/07/2023 3:14 p. m. | C48: 1/08/2023 9:54 a. m. | D48: 37 | E48: 437 | F48: 437 | G48: 1 | H48: .pdf | I48: 827 KB | J48: Digital
A49: 038 AnexoRadicacion | B49: 31/07/2023 12:02 p. m. | C49: 1/08/2023 9:54 a. m. | D49: 38 | E49: 438 | F49: 438 | G49: 1 | H49: .pdf | I49: 41,1 KB | J49: Digital
A50: 039 AlDespachoParaFijarFechaAudiencia | B50: 31/07/2023 12:02 p. m. | C50: 1/08/2023 9:54 a. m. | D50: 39 | E50: 439 | F50: 584 | G50: 146 | H50: .pdf | I50: 137 KB | J50: Digital
A51: 040 Anexos | B51: 31/07/2023 3:18 p. m. | C51: 1/08/2023 9:54 a. m. | D51: 40 | E51: 585 | F51: 585 | G51: 1 | H51: .pdf | I51: 5,27 MB | J51: Digital
A52: 041 AnexoCorreo | B52: 31/07/2023 3:18 p. m. | C52: 1/08/2023 9:54 a. m. | D52: 41 | E52: 586 | F52: 586 | G52: 1 | H52: .pdf | I52: 417 KB | J52: Digital
A53: 042 AnexoRadicacion | B53: 31/07/2023 12:02 p. m. | C53: 1/08/2023 9:54 a. m. | D53: 42 | E53: 587 | F53: 589 | G53: 3 | H53: .pdf | I53: 41,1 KB | J53: Digital
A54: 043 AutoFijaFechaAudiencia | B54: 31/07/2023 12:02 p. m. | C54: 1/08/2023 9:54 a. m. | D54: 43 | E54: 590 | F54: 592 | G54: 3 | H54: .pdf | I54: 214 KB | J54: Digital
A55: 044 CitacionAudiencia | B55: 31/07/2023 12:02 p. m. | C55: 1/08/2023 9:54 a. m. | D55: 44 | E55: 593 | F55: 595 | G55: 3 | H55: .pdf | I55: 270 KB | J55: Digital
A56: 045 CitacionAudiencia | B56: 31/07/2023 12:02 p. m. | C56: 1/08/2023 9:54 a. m. | D56: 45 | E56: 596 | F56: 596 | G56: 1 | H56: .pdf | I56: 273 KB | J56: Digital
A57: 046 AcuseDeRecibo | B57: 31/07/2023 12:02 p. m. | C57: 1/08/2023 9:54 a. m. | D57: 46 | E57: 597 | F57: 612 | G57: 16 | H57: .pdf | I57: 1,24 KB | J57: Digital
A58: 047 PruebaDeEntrega | B58: 31/07/2023 3:21 p. m. | C58: 1/08/2023 9:54 a. m. | D58: 47 | E58: 613 | F58: 613 | G58: 1 | H58: .pdf | I58: 1,02 MB | J58: Digital
A59: 048 AnexoRadicacion | B59: 31/07/2023 12:02 p. m. | C59: 1/08/2023 9:54 a. m. | D59: 48 | E59: 614 | F59: 616 | G59: 3 | H59: .pdf | I59: 40,6 KB | J59: Digital
A60: 049 CitacionAudiencia | B60: 31/07/2023 12:02 p. m. | C60: 1/08/2023 9:54 a. m. | D60: 49 | E60: 617 | F60: 617 | G60: 1 | H60: .pdf | I60: 264 KB | J60: Digital
A61: 050 AcuseDeRecibo | B61: 31/07/2023 12:02 p. m. | C61: 1/08/2023 9:54 a. m. | D61: 50 | E61: 618 | F61: 619 | G61: 2 | H61: .pdf | I61: 1,25 KB | J61: Digital
A62: 051 AutoDesignacion | B62: 31/07/2023 12:02 p. m. | C62: 1/08/2023 9:54 a. m. | D62: 51 | E62: 620 | F62: 621 | G62: 2 | H62: .pdf | I62: 165 KB | J62: Digital
A63: 052 Audiencia | B63: 31/07/2023 3:23 p. m. | C63: 1/08/2023 9:54 a. m. | D63: 52 | E63: 622 | F63: 622 | G63: 1 | H63: .mp4 | I63: 66,9 MB | J63: Digital
A64: 053 Audiencia | B64: 31/07/2023 3:23 p. m. | C64: 1/08/2023 9:54 a. m. | D64: 53 | E64: 623 | F64: 623 | G64: 1 | H64: .mp4 | I64: 46,3 MB | J64: Digital
A65: 054 ActasAudiencias | B65: 31/07/2023 12:02 p. m. | C65: 1/08/2023 9:54 a. m. | D65: 54 | E65: 624 | F65: 624 | G65: 1 | H65: .pdf | I65: 193 KB | J65: Digital
A66: 055 AnexoCorreo | B66: 31/07/2023 3:27 p. m. | C66: 1/08/2023 9:54 a. m. | D66: 55 | E66: 625 | F66: 625 | G66: 1 | H66: .pdf | I66: 737 KB | J66: Digital
A67: 056 AnexoRadicacion | B67: 31/07/2023 12:02 p. m. | C67: 1/08/2023 9:54 a. m. | D67: 56 | E67: 626 | F67: 626 | G67: 1 | H67: .pdf | I67: 40,1 KB | J67: Digital
A68: 057 SustituciónDePoder | B68: 31/07/2023 3:28 p. m. | C68: 1/08/2023 9:54 a. m. | D68: 57 | E68: 627 | F68: 651 | G68: 25 | H68: .pdf | I68: 57,4 KB | J68: Digital
A69: 058 AnexoCorreo | B69: 31/07/2023 3:29 p. m. | C69: 1/08/2023 9:54 a. m. | D69: 58 | E69: 652 | F69: 652 | G69: 1 | H69: .pdf | I69: 605 KB | J69: Digital
A70: 059 AnexoRadicacion | B70: 31/07/2023 12:02 p. m. | C70: 1/08/2023 9:54 a. m. | D70: 59 | E70: 653 | F70: 653 | G70: 1 | H70: .pdf | I70: 40,4 KB | J70: Digital
A71: 060 Anexos | B71: 1/08/2023 9:15 a. m. | C71: 1/08/2023 9:54 a. m. | D71: 60 | E71: 654 | F71: 768 | G71: 115 | H71: .pdf | I71: 2,57 MB | J71: Digital
A72: 061 AnexoCorreo | B72: 1/08/2023 9:15 a. m. | C72: 1/08/2023 9:54 a. m. | D72: 61 | E72: 769 | F72: 770 | G72: 2 | H72: .pdf | I72: 447 KB | J72: Digital
A73: 062 AnexoRadicacion | B73: 31/07/2023 12:02 p. m. | C73: 1/08/2023 9:54 a. m. | D73: 62 | E73: 771 | F73: 771 | G73: 1 | H73: .pdf | I73: 40,9 KB | J73: Digital
A74: 063 Memorial | B74: 1/08/2023 9:15 a. m. | C74: 1/08/2023 9:54 a. m. | D74: 63 | E74: 772 | F74: 773 | G74: 2 | H74: .pdf | I74: 8,12 MB | J74: Digital
A75: 064 AnexoCorreo | B75: 1/08/2023 9:16 a. m. | C75: 1/08/2023 9:54 a. m. | D75: 64 | E75: 774 | F75: 775 | G75: 2 | H75: .pdf | I75: 687 KB | J75: Digital
A76: 065 AnexoRadicacion | B76: 31/07/2023 12:02 p. m. | C76: 1/08/2023 9:54 a. m. | D76: 65 | E76: 776 | F76: 776 | G76: 1 | H76: .pdf | I76: 40,9 KB | J76: Digital
A77: 066 Anexos | B77: 1/08/2023 9:19 a. m. | C77: 1/08/2023 9:54 a. m. | D77: 66 | E77: 777 | F77: 778 | G77: 2 | H77: .pdf | I77: 424 KB | J77: Digital
A78: 067 AnexoCorreo | B78: 1/08/2023 9:19 a. m. | C78: 1/08/2023 9:54 a. m. | D78: =IF(A78="","",D77+1) -> 67 | E78: =+IF(G78="","",(1+F77)) -> 779 | F78: 779 | G78: 1 | H78: .pdf | I78: 657 KB | J78: Digital
A79: 068 AnexoRadicacion | B79: 31/07/2023 12:02 p. m. | C79: 1/08/2023 9:54 a. m. | D79: 68 | E79: 780 | F79: 780 | G79: 1 | H79: .pdf | I79: 40,7 KB | J79: Digital
A80: 068 Audiencia | B80: 1/08/2023 9:22 a. m. | C80: 1/08/2023 9:54 a. m. | D80: 69 | E80: 781 | F80: 782 | G80: 2 | H80: .mp4 | I80: 754 MB | J80: Digital
A81: 069 Audiencia | B81: 1/08/2023 9:20 a. m. | C81: 1/08/2023 9:54 a. m. | D81: 70 | E81: 783 | F81: 784 | G81: 2 | H81: .mp4 | I81: 106 MB | J81: Digital
A82: 071 ActasAudiencias | B82: 31/07/2023 12:02 p. m. | C82: 1/08/2023 9:54 a. m. | D82: 71 | E82: 785 | F82: 785 | G82: 1 | H82: .pdf | I82: 194 KB | J82: Digital
A83: 072 AnexoCorreo | B83: 1/08/2023 9:21 a. m. | C83: 1/08/2023 9:54 a. m. | D83: 72 | E83: 786 | F83: 787 | G83: 2 | H83: .pdf | I83: 496 KB | J83: Digital
A84: 073 AnexoRadicacion | B84: 31/07/2023 12:02 p. m. | C84: 1/08/2023 9:54 a. m. | D84: 73 | E84: 788 | F84: 789 | G84: 2 | H84: .pdf | I84: 41,2 KB | J84: Digital
A85: 074 AutoDeTramite | B85: 31/07/2023 12:02 p. m. | C85: 1/08/2023 9:54 a. m. | D85: 74 | E85: 790 | F85: 790 | G85: 1 | H85: .pdf | I85: 156 KB | J85: Digital
A86: 075 RemisionDeInformacion | B86: 31/07/2023 12:02 p. m. | C86: 1/08/2023 9:54 a. m. | D86: 75 | E86: 791 | F86: 811 | G86: 21 | H86: .pdf | I86: 149 KB | J86: Digital
A87: 076 AcuseDeRecibo | B87: 31/07/2023 12:02 p. m. | C87: 1/08/2023 9:54 a. m. | D87: 76 | E87: 812 | F87: 812 | G87: 1 | H87: .pdf | I87: 1,24 KB | J87: Digital
A88: 077 MemorialAcataRequerimiento | B88: 1/08/2023 9:22 a. m. | C88: 1/08/2023 9:54 a. m. | D88: 77 | E88: 813 | F88: 814 | G88: 2 | H88: .pdf | I88: 208 KB | J88: Digital
A89: 078 AnexoCorreo | B89: 1/08/2023 9:23 a. m. | C89: 1/08/2023 9:54 a. m. | D89: 78 | E89: 815 | F89: 815 | G89: 1 | H89: .pdf | I89: 751 KB | J89: Digital
A90: 079 AnexoRadicacion | B90: 31/07/2023 12:02 p. m. | C90: 1/08/2023 9:54 a. m. | D90: 79 | E90: 816 | F90: 817 | G90: 2 | H90: .pdf | I90: 40,9 KB | J90: Digital
A91: 080 DictamenPericial | B91: 1/08/2023 9:23 a. m. | C91: 1/08/2023 9:54 a. m. | D91: 80 | E91: 818 | F91: 818 | G91: 1 | H91: .pdf | I91: 2,97 MB | J91: Digital
A92: 081 MemorialAportaDictamenPericial | B92: 1/08/2023 9:23 a. m. | C92: 1/08/2023 9:54 a. m. | D92: 81 | E92: 819 | F92: 819 | G92: 1 | H92: .pdf | I92: 123 KB | J92: Digital
A93: 082 AnexoCorreo | B93: 1/08/2023 9:24 a. m. | C93: 1/08/2023 9:54 a. m. | D93: 82 | E93: 820 | F93: 820 | G93: 1 | H93: .pdf | I93: 763 KB | J93: Digital
A94: 083 AnexoRadicacion | B94: 31/07/2023 12:02 p. m. | C94: 1/08/2023 9:54 a. m. | D94: 83 | E94: 821 | F94: 822 | G94: 2 | H94: .pdf | I94: 40,8 KB | J94: Digital
A95: 084 AnexoCorreo | B95: 1/08/2023 9:25 a. m. | C95: 1/08/2023 9:54 a. m. | D95: 84 | E95: 823 | F95: 823 | G95: 1 | H95: .pdf | I95: 520 KB | J95: Digital
A96: 085 AnexoRadicacion | B96: 31/07/2023 12:02 p. m. | C96: 1/08/2023 9:54 a. m. | D96: 85 | E96: 824 | F96: 825 | G96: 2 | H96: .pdf | I96: 40,8 KB | J96: Digital
A97: 086 AnexoCorreo | B97: 1/08/2023 9:26 a. m. | C97: 1/08/2023 9:54 a. m. | D97: 86 | E97: 826 | F97: 827 | G97: 2 | H97: .pdf | I97: 457 KB | J97: Digital
A98: 087 AnexoRadicacion | B98: 31/07/2023 12:02 p. m. | C98: 1/08/2023 9:54 a. m. | D98: 87 | E98: 828 | F98: 829 | G98: 2 | H98: .pdf | I98: 40,8 KB | J98: Digital
A99: 088 AnexoCorreo | B99: 1/08/2023 9:27 a. m. | C99: 1/08/2023 9:54 a. m. | D99: 88 | E99: 830 | F99: 837 | G99: 8 | H99: .pdf | I99: 743 KB | J99: Digital
A100: 089 AnexoRadicacion | B100: 31/07/2023 12:02 p. m. | C100: 1/08/2023 9:54 a. m. | D100: 89 | E100: 838 | F100: 838 | G100: 1 | H100: .pdf | I100: 41,3 KB | J100: Digital
A101: 090 Audiencia | B101: 1/08/2023 9:52 a. m. | C101: 1/08/2023 9:54 a. m. | D101: 90 | E101: 839 | F101: 846 | G101: 8 | H101: .mp4 | I101: 533 MB | J101: Digital
A102: 091 ActasAudiencias | B102: 31/07/2023 12:02 p. m. | C102: 1/08/2023 9:54 a. m. | D102: 91 | E102: 847 | F102: 847 | G102: 1 | H102: .pdf | I102: 194 KB | J102: Digital
A103: 092 CitacionAudiencia | B103: 31/07/2023 12:02 p. m. | C103: 1/08/2023 9:54 a. m. | D103: 92 | E103: 848 | F103: 848 | G103: 1 | H103: .pdf | I103: 175 KB | J103: Digital
A104: 093 RemisionDeInformacion | B104: 31/07/2023 12:02 p. m. | C104: 1/08/2023 9:54 a. m. | D104: 93 | E104: 849 | F104: 849 | G104: 1 | H104: .pdf | I104: 166 KB | J104: Digital
A105: 094 PruebaDeEntrega | B105: 1/08/2023 9:29 a. m. | C105: 1/08/2023 9:54 a. m. | D105: 94 | E105: 850 | F105: 851 | G105: 2 | H105: .pdf | I105: 435 KB | J105: Digital
A106: 095 AnexoRadicacion | B106: 31/07/2023 12:02 p. m. | C106: 1/08/2023 9:54 a. m. | D106: 95 | E106: 852 | F106: 854 | G106: 3 | H106: .pdf | I106: 40,6 KB | J106: Digital
A107: 096 PruebaDeEntrega | B107: 1/08/2023 9:29 a. m. | C107: 1/08/2023 9:54 a. m. | D107: 96 | E107: 855 | F107: 857 | G107: 3 | H107: .pdf | I107: 415 KB | J107: Digital
A108: 097 AnexoRadicacion | B108: 31/07/2023 12:02 p. m. | C108: 1/08/2023 9:54 a. m. | D108: 97 | E108: 858 | F108: 858 | G108: 1 | H108: .pdf | I108: 40,9 KB | J108: Digital
A109: 098 AnexoCorreo | B109: 1/08/2023 9:30 a. m. | C109: 1/08/2023 9:54 a. m. | D109: 98 | E109: 859 | F109: 859 | G109: 1 | H109: .pdf | I109: 623 KB | J109: Digital
A110: 099 AnexoRadicacion | B110: 31/07/2023 12:02 p. m. | C110: 1/08/2023 9:54 a. m. | D110: 99 | E110: 860 | F110: 862 | G110: 3 | H110: .pdf | I110: 40,5 KB | J110: Digital
A111: 100 AutoFijaFechaAudiencia | B111: 31/07/2023 12:02 p. m. | C111: 1/08/2023 9:54 a. m. | D111: 100 | E111: 863 | F111: 863 | G111: 1 | H111: .pdf | I111: 161 KB | J111: Digital
A112: 101 CitacionAudiencia | B112: 31/07/2023 12:02 p. m. | C112: 1/08/2023 9:54 a. m. | D112: 101 | E112: 864 | F112: 864 | G112: 1 | H112: .pdf | I112: 264 KB | J112: Digital
A113: 102 CitacionAudiencia | B113: 31/07/2023 12:02 p. m. | C113: 1/08/2023 9:54 a. m. | D113: 102 | E113: 865 | F113: 865 | G113: 1 | H113: .pdf | I113: 267 KB | J113: Digital
A114: 103 AcuseDeRecibo | B114: 31/07/2023 12:02 p. m. | C114: 1/08/2023 9:54 a. m. | D114: 103 | E114: 866 | F114: 867 | G114: 2 | H114: .pdf | I114: 1,24 KB | J114: Digital
A115: 104 AnexoRadicacion | B115: 31/07/2023 12:02 p. m. | C115: 1/08/2023 9:54 a. m. | D115: 104 | E115: 868 | F115: 869 | G115: 2 | H115: .pdf | I115: 40,9 KB | J115: Digital
A116: 105 CitacionAudiencia | B116: 31/07/2023 12:02 p. m. | C116: 1/08/2023 9:54 a. m. | D116: 105 | E116: 870 | F116: 872 | G116: 3 | H116: .pdf | I116: 281 KB | J116: Digital
A117: 106 AcuseDeRecibo | B117: 31/07/2023 12:02 p. m. | C117: 1/08/2023 9:54 a. m. | D117: 106 | E117: 873 | F117: 879 | G117: 7 | H117: .pdf | I117: 1,25 KB | J117: Digital
A118: 107 AnexoCorreo | B118: 1/08/2023 9:34 a. m. | C118: 1/08/2023 9:54 a. m. | D118: 107 | E118: 880 | F118: 880 | G118: 1 | H118: .pdf | I118: 456 KB | J118: Digital
A119: 108 AnexoRadicacion | B119: 31/07/2023 12:02 p. m. | C119: 1/08/2023 9:54 a. m. | D119: 108 | E119: 881 | F119: 881 | G119: 1 | H119: .pdf | I119: 40,5 KB | J119: Digital
A120: 109 Audiencia | B120: 1/08/2023 9:35 a. m. | C120: 1/08/2023 9:54 a. m. | D120: 109 | E120: =+IF(G120="","",(1+F119)) -> 882 | F120: =IF(E120<>"",E120+(G120-1),"") -> 883 | G120: 2 | H120: .mp4 | I120: 220 MB | J120: Digital
A121: 110 ActasAudiencias | B121: 31/07/2023 12:02 p. m. | C121: 1/08/2023 9:55 a. m. | D121: 110 | E121: 884 | F121: 886 | G121: 3 | H121: .pdf | I121: 194 KB | J121: Digital
A122: 111 AutoDesignacion | B122: 31/07/2023 12:02 p. m. | C122: 1/08/2023 9:55 a. m. | D122: 111 | E122: 887 | F122: 890 | G122: 4 | H122: .pdf | I122: 160 KB | J122: Digital
A123: 112 Audiencia | B123: 31/07/2023 12:02 p. m. | C123: 1/08/2023 9:55 a. m. | D123: 112 | E123: 891 | F123: 895 | G123: 5 | H123: .mp4 | I123: 358 MB | J123: Digital
A124: 113 Audiencia | B124: 31/07/2023 12:02 p. m. | C124: 1/08/2023 9:55 a. m. | D124: 113 | E124: 896 | F124: 901 | G124: 6 | H124: .mp4 | I124: 211 MB | J124: Digital
A125: 114 Audiencia | B125: 31/07/2023 12:02 p. m. | C125: 1/08/2023 9:55 a. m. | D125: 114 | E125: 902 | F125: 908 | G125: 7 | H125: .TXT | I125: 371 bytes | J125: Digital
A126: 115 FalloNiegaPretensionesProcesoVerbal | B126: 31/07/2023 12:02 p. m. | C126: 1/08/2023 9:55 a. m. | D126: 115 | E126: 909 | F126: 916 | G126: 8 | H126: .pdf | I126: 226 KB | J126: Digital
A127: 116 RecursoApelacion | B127: 1/08/2023 9:39 a. m. | C127: 1/08/2023 9:55 a. m. | D127: 116 | E127: 917 | F127: 925 | G127: 9 | H127: .pdf | I127: 450 KB | J127: Digital
A128: 117 AnexoCorreo | B128: 1/08/2023 9:39 a. m. | C128: 1/08/2023 9:55 a. m. | D128: 117 | E128: 926 | F128: 935 | G128: 10 | H128: .pdf | I128: 485 KB | J128: Digital
A129: 118 AnexoRadicacion | B129: 31/07/2023 12:02 p. m. | C129: 1/08/2023 9:55 a. m. | D129: 118 | E129: 936 | F129: 946 | G129: 11 | H129: .pdf | I129: 41,0 KB | J129: Digital
A130: FECHA DE CIERRE DEL EXPEDIENTE:
A131: Número de cuadernos del expediente. (diligencie al momento de archivo definitivo)

Sheet Hoja1
C1: Orden Documento | D1: Número Páginas | E1: Página Inicio | F1: Página Fin
C3: 44 | D3: 2 | E3: 132 | F3: 133 | H3: 44 | I3: 2 | J3: 132 | K3: =(J3+I3)-1 -> 133 | M3: 44 | N3: 2 | O3: 132 | P3: =(O3+N3)-1 -> 133
C4: 45 | D4: 1 | E4: 134 | F4: 134 | H4: 45 | I4: 1 | J4: 134 | K4: =(J4+I4)-1 -> 134 | M4: 45 | N4: 1 | O4: 134 | P4: =(O4+N4)-1 -> 134
C5: 46 | D5: 1 | E5: 135 | F5: 135 | H5: 46 | I5: 1 | J5: 135 | K5: 135 | M5: 46 | N5: 1 | O5: 135 | P5: 135
C6: 47 | D6: 2 | E6: 136 | F6: 137 | H6: 47 | I6: 2 | J6: 136 | K6: 137 | M6: 47 | N6: 2 | O6: 136 | P6: 137
C7: 48 | D7: 2 | E7: 138 | F7: 139 | H7: 48 | I7: 2 | J7: 138 | K7: 139 | M7: 48 | N7: 2 | O7: 138 | P7: 139
C8: 49 | D8: 5 | E8: 140 | F8: =E8+4 -> 144 | H8: 49 | I8: 5 | J8: 140 | K8: 144 | M8: 49 | N8: 5 | O8: 140 | P8: 144
C9: 50 | D9: 1 | E9: 145 | F9: 145 | H9: 50 | I9: 1 | J9: 145 | K9: 145 | M9: 50 | N9: 1 | O9: 145 | P9: 145
C10: 51 | D10: 18 | E10: 146 | F10: =E10+17 -> 163 | H10: 51 | I10: 18 | J10: 146 | K10: 163 | M10: 51 | N10: 18 | O10: 146 | P10: 163
C11: 52 | D11: 285 | E11: 164 | F11: =E11+284 -> 448 | H11: 52 | I11: 285 | J11: 164 | K11: 448 | M11: 52 | N11: 285 | O11: 164 | P11: 448
C12: 53 | D12: 2 | E12: 449 | F12: 450 | H12: 53 | I12: 2 | J12: 449 | K12: 450 | M12: 53 | N12: 2 | O12: 449 | P12: 450
C13: 54 | D13: 1 | E13: 451 | F13: 451 | H13: 54 | I13: 1 | J13: 451 | K13: =(J13+I13)-1 -> 451 | M13: 54 | N13: 1 | O13: =P12+1 -> 451 | P13: 451
C14: 55 | D14: 2 | H14: 55 | I14: 2 | J14: =(J13+I14)-1 -> 452 | K14: 453 | M14: 55 | N14: 2 | O14: =P13+1 -> 452 | P14: =(O14+N14)-2 -> 452
C15: 56 | D15: 2 | H15: 56 | I15: 2 | J15: =(J14+I15)-1 -> 453 | K15: 454 | M15: 56 | N15: 2 | O15: 453 | P15: =(O15+N15)-1 -> 454
C16: 57 | D16: 1 | H16: 57 | I16: 1 | J16: 455 | K16: 455 | M16: 57 | N16: 1 | O16: 455 | P16: =(O16+N16)-1 -> 455
C17: 58 | D17: 1 | H17: 58 | I17: 1 | J17: 456 | K17: 456 | M17: 58 | N17: 1 | O17: 456 | P17: =(O17+N17)-1 -> 456
C18: 59 | D18: 18 | H18: 59 | I18: 18 | J18: 457 | K18: 474 | M18: 59 | N18: 18 | O18: 457 | P18: =(O18+N18)-2 -> 473
C19: 60 | D19: 1 | H19: 60 | I19: 1 | J19: =K18+1 -> 475 | K19: 475 | M19: 60 | N19: 1 | O19: 474 | P19: =(O19+N19)-1 -> 474
C24: 1 | D24: 1 | E24: 1 | F24: =(D24+E24)-1 -> 1
C25: 2 | D25: 1 | E25: =+F24+1 -> 2 | F25: =(D25+E25)-1 -> 2
C26: 3 | D26: 2 | E26: =+F25+1 -> 3 | F26: 4
C27: 4 | D27: 1 | E27: 5 | F27: 5
C28: 5 | D28: 1 | E28: 6 | F28: 6
C29: 6 | D29: 1 | E29: 7 | F29: 7
C30: 7 | D30: 3 | E30: 8 | F30: 10
C31: 8 | D31: 2 | E31: 11 | F31: 12
C32: 9 | D32: 9 | E32: 13 | F32: 21
C33: 10 | D33: 1 | E33: 22 | F33: 22
C34: 11 | D34: 1 | E34: 23 | F34: 23
C35: 12 | D35: 1 | E35: 24 | F35: 24
C36: 13 | D36: 1 | E36: 25 | F36: 25
C37: 14 | D37: 2 | E37: 26 | F37: 27
C38: 15 | D38: 2 | E38: 28 | F38: 29
C39: 16 | D39: 1 | E39: 30 | F39: 30
C40: 17 | D40: 2 | E40: 31 | F40: 32
C41: 18 | D41: 2 | E41: 33 | F41: 34
C42: 19 | D42: 2 | E42: 35 | F42: 36
C43: 20 | D43: 2 | E43: 37 | F43: 38
C44: 21 | D44: 1 | E44: 39 | F44: 39
C45: 22 | D45: 2 | E45: 40 | F45: 41
C46: 23 | D46: 2 | E46: 42 | F46: 43
C47: 24 | D47: 1 | E47: 44 | F47: 44
C48: 25 | D48: 1 | E48: 45 | F48: 45
C49: 26 | D49: 2 | E49: 46 | F49: 47
C50: 27 | D50: 28 | E50: 48 | F50: 75
C51: 28 | D51: 4 | E51: 76 | F51: 79
C52: 29 | D52: 4 | E52: 80 | F52: 83
C53: 30 | D53: 20 | E53: 84 | F53: 103
C54: 31 | D54: 4 | E54: 104 | F54: 107
C55: 32 | D55: 2 | E55: 108 | F55: 109
C56: 33 | D56: 1 | E56: 110 | F56: 110
C57: 34 | D57: 1 | E57: 111 | F57: 111
C58: 35 | D58: 1 | E58: 112 | F58: 112
C59: 36 | D59: 1 | E59: 113 | F59: 113
C60: 37 | D60: 8 | E60: 114 | F60: 121
C61: 38 | D61: 1 | E61: 122 | F61: 122
C62: 39 | D62: 1 | E62: 123 | F62: 123
C63: 40 | D63: 2 | E63: 124 | F63: 125
C64: 41 | D64: 3 | E64: 126 | F64: 128
C65: 42 | D65: 2 | E65: 129 | F65: 130
C66: 43 | D66: 1 | E66: 131 | F66: 131
C67: 44 | D67: 2 | E67: 132 | F67: 133
C68: 45 | D68: 1 | E68: 134 | F68: 134
C69: 46 | D69: 1 | E69: 135 | F69: 135
C70: 47 | D70: 2 | E70: 136 | F70: 137
C71: 48 | D71: 2 | E71: 138 | F71: 139
C72: 49 | D72: 5 | E72: 140 | F72: 144
C73: 50 | D73: 1 | E73: 145 | F73: 145
C74: 51 | D74: 18 | E74: 146 | F74: 163
C75: 52 | D75: 285 | E75: 164 | F75: 448
C76: 53 | D76: 2 | E76: 449 | F76: 450
C77: 54 | D77: 1 | E77: 451 | F77: 451
C78: 55 | D78: 2 | E78: 452 | F78: 453
C79: 56 | D79: 2 | E79: 454 | F79: 455
C80: 57 | D80: 1 | E80: 456 | F80: 456
C81: 58 | D81: 1 | E81: 457 | F81: 457
C82: 59 | D82: 18 | E82: 458 | F82: 475
C83: 60 | D83: 1 | E83: 476 | F83: 476
C84: 61 | D84: 1 | E84: 477 | F84: 477
C85: 62 | D85: 1 | E85: 478 | F85: 478
C86: 63 | D86: 1 | E86: 479 | F86: 479
C87: 64 | D87: 2 | E87: 480 | F87: 481
C88: 65 | D88: 1 | E88: 482 | F88: 482
C89: 66 | D89: 3 | E89: 483 | F89: =(D89+E89)-1 -> 485
C90: 67 | D90: 5 | E90: =+F89+1 -> 486 | F90: 490
C91: 68 | D91: 2 | E91: 491 | F91: 492
C92: 69 | D92: 2 | E92: 493 | F92: 494
C93: 70 | D93: 1 | E93: 495 | F93: 495
C94: 71 | D94: 2 | E94: 496 | F94: 497
C95: 72 | D95: 2 | E95: 498 | F95: 499
C96: 73 | D96: 1 | E96: 500 | F96: 500
C97: 74 | D97: 1 | E97: 501 | F97: 501
C98: 75 | D98: 9 | E98: 502 | F98: 510
C99: 76 | D99: 1 | E99: 511 | F99: 511
C100: 77 | D100: 2 | E100: 512 | F100: 513
C101: 78 | D101: 12 | E101: 514 | F101: 525
C102: 79 | D102: 2 | E102: 526 | F102: 527
C103: 80 | D103: 1 | E103: 528 | F103: 528
C104: 81 | D104: 51 | E104: 529 | F104: 579
C105: 82 | D105: 7 | E105: 580 | F105: 586
C106: 83 | D106: 1 | E106: 587 | F106: 587
C107: 84 | D107: 1 | E107: 588 | F107: 588
C108: 85 | D108: 91 | E108: 589 | F108: 679
C109: 86 | D109: 2 | E109: 680 | F109: 681
C110: 87 | D110: 11 | E110: 682 | F110: 692
C111: 88 | D111: 1 | E111: 693 | F111: 693
C112: 89 | D112: 1 | E112: 694 | F112: 694
C113: 90 | D113: 91 | E113: 695 | F113: 785
C114: 91 | D114: 1 | E114: 786 | F114: 786
C115: 92 | D115: 1 | E115: 787 | F115: 787
C116: 93 | D116: 3 | E116: 788 | F116: 790
C117: 94 | D117: 1 | E117: 791 | F117: 791
C118: 95 | D118: 1 | E118: 792 | F118: 792
C119: 96 | D119: 2 | E119: 793 | F119: 794
C120: 97 | D120: 9 | E120: 795 | F120: 803
C121: 98 | D121: 5 | E121: 804 | F121: 808
C122: 99 | D122: 33 | E122: 809 | F122: 841
C123: 100 | D123: 14 | E123: 842 | F123: 855
C124: 101 | D124: 28 | E124: 856 | F124: 883
C125: 102 | D125: 1 | E125: 884 | F125: 884
C126: 103 | D126: 1 | E126: 885 | F126: 885
C127: 104 | D127: 3 | E127: 886 | F127: 888
C128: 105 | D128: 1 | E128: 889 | F128: 889
C129: 106 | D129: 2 | E129: 890 | F129: 891
C130: 107 | D130: 2 | E130: 892 | F130: 893
C131: 108 | D131: 1 | E131: 894 | F131: 894
C132: 109 | D132: 47 | E132: 895 | F132: 941
C133: 110 | D133: 1 | E133: 942 | F133: 942
C134: 111 | D134: 3 | E134: 943 | F134: 945
C135: 112 | D135: 2 | E135: 946 | F135: 947
C136: 113 | D136: 1 | E136: 948 | F136: 948
C137: 114 | D137: 1 | E137: 949 | F137: 949
C138: 115 | D138: 69 | E138: 950 | F138: 1018
C139: 116 | D139: 1 | E139: 1019 | F139: 1019
C140: 117 | D140: 1 | E140: 1020 | F140: 1020
C141: 118 | D141: 1 | E141: 1021 | F141: 1021
C142: 119 | D142: 1 | E142: 1022 | F142: 1022
C143: 120 | D143: 3 | E143: 1023 | F143: 1025
C144: 121 | D144: 2 | E144: 1026 | F144: 1027
C145: 122 | D145: 1 | E145: 1028 | F145: 1028
C146: 123 | D146: 44 | E146: 1029 | F146: 1072
C147: 124 | D147: 2 | E147: 1073 | F147: 1074
C148: 125 | D148: 1 | E148: 1075 | F148: 1075
C149: 126 | D149: 1 | E149: 1076 | F149: 1076
C150: 127 | D150: 1 | E150: 1077 | F150: 1077
C151: 128 | D151: 2 | E151: 1078 | F151: 1079
C152: 129 | D152: 17 | E152: 1080 | F152: 1096
C153: 130 | D153: 1 | E153: 1097 | F153: =(D153+E153)-1 -> 1097
C154: 131 | D154: 12 | E154: =+F153+1 -> 1098 | F154: 1109
C155: 132 | D155: 2 | E155: 1110 | F155: 1111
C156: 133 | D156: 1 | E156: 1112 | F156: 1112
C157: 134 | D157: 1 | E157: 1113 | F157: 1113
C158: 135 | D158: 1 | E158: 1114 | F158: 1114
C159: 136 | D159: 1 | E159: 1115 | F159: 1115
C160: 137 | D160: 2 | E160: 1116 | F160: 1117
C161: 138 | D161: 1 | E161: 1118 | F161: 1118
C162: 139 | D162: 2 | E162: 1119 | F162: 1120
C163: 140 | D163: 2 | E163: 1121 | F163: 1122
C164: 141 | D164: 1 | E164: 1123 | F164: 1123
C165: 142 | D165: 1 | E165: 1124 | F165: 1124
C166: 143 | D166: 1 | E166: 1125 | F166: 1125
C167: 144 | D167: 2 | E167: 1126 | F167: 1127
C168: 145 | D168: 2 | E168: 1128 | F168: 1129
C169: 146 | D169: 1 | E169: 1130 | F169: 1130
C170: 147 | D170: 1 | E170: 1131 | F170: 1131
C171: 148 | D171: 2 | E171: 1132 | F171: 1133
C172: 149 | D172: 2 | E172: 1134 | F172: 1135
C173: 150 | D173: 2 | E173: 1136 | F173: 1137
C174: 151 | D174: 3 | E174: 1138 | F174: 1140
C175: 152 | D175: 1 | E175: 1141 | F175: 1141
C176: 153 | D176: 2 | E176: 1142 | F176: 1143
C177: 154 | D177: 1 | E177: 1144 | F177: 1144
C178: 155 | D178: 2 | E178: 1145 | F178: 1146
C179: 156 | D179: 2 | E179: 1147 | F179: 1148
C180: 157 | D180: 1 | E180: 1149 | F180: 1149
C181: 158 | D181: 1 | E181: 1150 | F181: 1150
C182: 159 | D182: 1 | E182: 1151 | F182: 1151
C183: 160 | D183: 2 | E183: 1152 | F183: 1153
C184: 161 | D184: 1 | E184: 1154 | F184: 1154
C185: 162 | D185: 2 | E185: 1155 | F185: 1156
C186: 163 | D186: 1 | E186: 1157 | F186: 1157
C187: 164 | D187: 6 | E187: 1158 | F187: 1163
C188: 165 | D188: 1 | E188: 1164 | F188: 1164
C189: 166 | D189: 1 | E189: 1165 | F189: 1165
C190: 167 | D190: 6 | E190: 1166 | F190: 1171
C191: 168 | D191: 1 | E191: 1172 | F191: 1172
C192: 169 | D192: 1 | E192: 1173 | F192: 1173
C193: 170 | D193: 1 | E193: 1174 | F193: 1174
C194: 171 | D194: 2 | E194: 1175 | F194: 1176
C195: 172 | D195: 3 | E195: 1177 | F195: 1179
C196: 173 | D196: 3 | E196: 1180 | F196: 1182
C197: 174 | D197: 9 | E197: 1183 | F197: 1191
C198: 175 | D198: 1 | E198: 1192 | F198: 1192
C199: 176 | D199: 3 | E199: 1193 | F199: 1195
C200: 177 | D200: 3 | E200: 1196 | F200: 1198
C201: 178 | D201: 3 | E201: 1199 | F201: 1201
C202: 179 | D202: 1 | E202: 1202 | F202: 1202
C203: 180 | D203: 1 | E203: 1203 | F203: 1203
C204: 181 | D204: 1 | E204: 1204 | F204: 1204
C205: 182 | D205: 1 | E205: 1205 | F205: 1205
... 21 more rows
